[Event "98th Caplin Hastings Masters 2024-25"]
[Site "Hastings"]
[Date "2024.12.31"]
[Round "5.31"]
[White "Ahn, Sungmin"]
[Black "Bazakutsa, Svyatoslav"]
[Result "0-1"]
[ECO "B23"]
[WhiteElo "1926"]
[BlackElo "2484"]
[Annotator "TA"]
[PlyCount "82"]
[EventDate "2024.12.23"]
[EventType "swiss"]
[EventCountry "ENG"]
[SourceTitle "playchess.com"]
[Source "ChessBase"]
[SourceQuality "1"]
[TimeControl "5400+30"]

{[%evp 9,82,17,34,16,6,8,53,35,42,30,53,0,0,0,6,9,8,3,0,-12,-8,-66,-8,-39,-29,-10,-29,-38,-29,-36,-17,-51,-12,-64,-2,-12,16,-12,0,0,21,16,13,12,14,15,20,-32,-31,-30,-31,-190,-196,-202,-185,-198,-191,-174,-175,-482,-344,-339,-339,-2367,-1732,-29986,-29987,-29989,-29990,-29990,-29991,-29995,-29996,-29996,-29996]} 1. e4 {[%emt 0:00:02]} c5 {[%emt 0:00:20]} 2. Nc3 {[%emt 0:00:02]} Nc6 {[%emt 0:00:15][%cal Bb8c6,Bc6d4,Bd4f3][%mdl 32]} 3. Bb5 {[%emt 0:00:32]} Nd4 {[%emt 0:00:32]} 4. Nf3 {[%emt 0:00:02]} Nxf3+ {[%emt 0:25:53]} 5. Qxf3 {[%emt 0:00:16]} e6 {[%emt 0:00:13] Black is weak on the light squares} 6. a4 {[%emt 0:12:41]} a6 {[%emt 0:13:33]} 7. Bc4 {[%emt 0:10:03]} g6 {[%emt 0:13:20]} 8. d3 {[%emt 0:05:37]} d6 {[%emt 0:06:45]} 9. O-O {[%emt 0:06:06]} Bg7 {[%emt 0:02:31]} 10. Bd2 {[%emt 0:01:44]} (10. Bf4 $14) 10... Ne7 $11 {[%emt 0:05:14]} 11. Bg5 {[%emt 0:10:19]} h6 {[%emt 0:05:39]} 12. Bf6 {[%emt 0:00:26]} O-O {[%emt 0:00:49]} 13. Bxg7 {[%emt 0:04:12]} Kxg7 {[%emt 0:00:31]} 14. Rad1 {[%emt 0:02:32]} Nc6 {[%emt 0:06:08]} 15. Qg3 {[%emt 0:02:24]} (15. Ne2 $1 $11) 15... Rb8 {[%emt 0:02:11]} ({Black should try} 15... Nd4 $15 16. Bb3 f5 17. exf5 exf5) 16. f4 {[%emt 0:03:28]} Nd4 {[%emt 0:01:13][%cal Ob7b5] Hoping for ...b5!.} 17. Rd2 {[%emt 0:00:29]} b5 {[%emt 0:00:13]} 18. axb5 {[%emt 0:07:18]} axb5 {[%emt 0:00:02]} 19. Bb3 {[%emt 0:03:02]} Kh7 {[%emt 0:02:09]} (19... Bb7 {keeps more tension.} 20. f5 Qg5 21. f6+ Kg8) 20. Kh1 {[%emt 0:01:12]} f5 {[%emt 0:01:01]} 21. Qe1 {[%emt 0:02:32]} (21. Ne2 $1 $11) 21... Ra8 {[%emt 0:01:57]} (21... b4 $15 22. Ne2 Nxb3 23. cxb3 Ba6) 22. Ne2 {[%emt 0:01:30][%cal Bc3e2,Be2g1,Bg1f3][%mdl 32]} Nc6 {[%emt 0:01:40][%cal Bd4c6,Bc6a5,Ba5c4,Bc4b2,Bb2d3][%mdl 32]} 23. c3 {[%emt 0:00:22]} d5 {[%emt 0:04:11]} 24. Ng1 {[%emt 0:02:13]} b4 {[%emt 0:01:49]} 25. Nf3 {[%emt 0:01:59]} bxc3 {[%emt 0:00:09]} 26. bxc3 {[%emt 0:00:01]} Ra3 {[%emt 0:00:04]} 27. Qd1 {[%emt 0:01:34]} Na5 {[%emt 0:02:39]} 28. Bc2 {[%emt 0:02:41]} (28. Ba2 $1 $11) 28... fxe4 $15 {[%emt 0:01:11]} 29. dxe4 {[%emt 0:00:51]} Nc4 $36 {[%emt 0:00:01][%mdl 2048] Wards off Ne5. White is under pressure.} 30. Rd3 $2 {[%emt 0:08:23]} ({Better is} 30. Re2 $15) 30... Nb2 $1 $19 {[%emt 0:01:34]} (30... Rxf4 31. Qc1 (31. exd5 e5 $11) 31... Rf6 (31... Rxe4 $2 {perishes.} 32. Nd2 $18) 32. Rfd1 $11) 31. Qc1 {[%emt 0:00:01]} Nxd3 {[%emt 0:00:04]} 32. Qxa3 {[%emt 0:00:05]} dxe4 {[%emt 0:00:07]} ({And not} 32... Nxf4 33. Qxc5 Bb7 34. Qa7 $11) 33. c4 {[%emt 0:04:57]} Rxf4 {[%emt 0:01:20]} 34. g3 $2 {[%emt 0:00:45]} (34. Bxd3 Qxd3 35. Qxd3 exd3 36. Nd2 Rxf1+ 37. Nxf1) 34... Rxf3 {[%emt 0:01:15]} 35. Rxf3 {[%emt 0:00:02]} exf3 {[%emt 0:00:03]} 36. Bxd3 $2 {[%emt 0:02:16][%mdl 4096] Endgame KQB-KQB. Black is two pawns up.} (36. Qxd3 Qxd3 37. Bxd3) 36... Bb7 {[%emt 0:01:07] ( -> ...f2+)} 37. Qa7 {[%emt 0:00:42]} Qd7 {[%emt 0:00:01]} 38. h4 {[%emt 0:00:51]} f2+ {[%emt 0:00:23]} 39. Kh2 {[%emt 0:00:14]} Qc6 {[%emt 0:00:06][%csl Gb7][%cal Rc6h1]} 40. Bxg6+ {[%emt 0:01:58]} Kxg6 {[%emt 0:00:20][%csl Gb7][%cal Rc6h1]} 41. h5+ {[%emt 0:00:13]} Kh7 {[%emt 0:00:20]} 0-1

[Event "98th Caplin Hastings Masters 2024-25"]
[Site "Hastings"]
[Date "2024.12.31"]
[Round "5.32"]
[White "Jukes, Sam"]
[Black "Verbin, Valentina"]
[Result "0-1"]
[ECO "B41"]
[WhiteElo "1911"]
[BlackElo "2093"]
[Annotator "NA RC"]
[PlyCount "80"]
[EventDate "2024.12.23"]
[EventType "swiss"]
[EventCountry "ENG"]
[SourceTitle "playchess.com"]
[Source "ChessBase"]
[SourceQuality "1"]
[TimeControl "5400+30"]

1. e4 {[%emt 0:00:02]} c5 {[%emt 0:01:43]} 2. Nf3 {[%emt 0:00:06]} e6 {[%emt 0:00:23]} 3. d4 {[%emt 0:00:07]} cxd4 {[%emt 0:00:06]} 4. Nxd4 {[%emt 0:00:05]} a6 {[%emt 0:00:11]} 5. a3 {[%emt 0:08:19]} Nf6 {[%emt 0:02:13]} 6. Bd3 {[%emt 0:00:15]} Nc6 {[%emt 0:09:14]} 7. Nxc6 {[%emt 0:03:38]} bxc6 {[%emt 0:05:18]} 8. c4 {[%emt 0:03:05]} e5 {[%emt 0:02:26]} 9. Nc3 {[%emt 0:02:41]} d6 {[%emt 0:03:34]} 10. O-O {[%emt 0:02:07]} Be7 {[%emt 0:03:20]} 11. Qa4 {[%emt 0:06:28]} Bd7 {[%emt 0:10:29]} 12. Qc2 {[%emt 0:02:46]} O-O {[%emt 0:07:31]} 13. b4 {[%emt 0:05:46]} h6 {[%emt 0:04:35]} 14. Rd1 {[%emt 0:05:52]} Qc7 {[%emt 0:03:14]} 15. Bb2 {[%emt 0:16:54]} Rfc8 {[%emt 0:00:50]} 16. Qe2 {[%emt 0:06:59]} Bg4 {[%emt 0:12:42]} 17. f3 {[%emt 0:00:21]} Be6 {[%emt 0:00:05]} 18. Qf2 {[%emt 0:07:56]} Qb7 {[%emt 0:06:04]} 19. Na4 {[%emt 0:04:46]} Nd7 {[%emt 0:02:24]} 20. Rab1 {[%emt 0:01:37]} Rcb8 {[%emt 0:09:59]} 21. Bc1 {[%emt 0:02:30]} Qc7 {[%emt 0:03:48]} 22. Be3 {[%emt 0:01:00]} a5 {[%emt 0:04:47]} 23. b5 {[%emt 0:01:46]} cxb5 {[%emt 0:00:46]} 24. cxb5 {[%emt 0:00:43]} d5 {[%emt 0:00:11]} 25. b6 {[%emt 0:01:43]} Qb7 {[%emt 0:01:03]} 26. exd5 {[%emt 0:01:27]} Bxd5 {[%emt 0:00:05]} 27. Nc5 {[%emt 0:04:21]} Nxc5 {[%emt 0:02:13]} 28. Bxc5 {[%emt 0:00:05]} Rd8 {[%emt 0:00:42]} 29. Bxe7 {[%emt 0:02:53]} Qxe7 {[%emt 0:00:03]} 30. Qb2 {[%emt 0:00:17]} Rab8 {[%emt 0:01:21]} 31. Qc3 {[%emt 0:02:15]} a4 {[%emt 0:02:41]} 32. Qb4 {[%emt 0:02:28]} Qg5 {[%emt 0:00:50]} 33. Kf2 {[%emt 0:03:52]} Bb3 {[%emt 0:00:33]} 34. Rxb3 {[%emt 0:00:45]} axb3 {[%emt 0:00:05]} 35. Qxb3 {[%emt 0:00:10]} Qh4+ {[%emt 0:01:00]} 36. Kg1 {[%emt 0:00:48]} Qd4+ {[%emt 0:00:04]} 37. Kh1 {[%emt 0:00:08]} Qxb6 {[%emt 0:01:22]} 38. Qc2 {[%emt 0:01:43]} Rbc8 {[%emt 0:00:07]} 39. Bh7+ {[%emt 0:00:24]} Kh8 {[%emt 0:00:14]} 40. Rxd8+ {[%emt 0:00:42]} Qxd8 {[%emt 0:00:10]} 0-1

[Event "98th Caplin Hastings Masters 2024-25"]
[Site "Hastings"]
[Date "2024.12.31"]
[Round "5.33"]
[White "Vaidyanathan, Sathya"]
[Black "Lishoy Gengis Paratazham, Dildarav"]
[Result "0-1"]
[ECO "B13"]
[WhiteElo "1908"]
[BlackElo "2037"]
[Annotator "NA RC"]
[PlyCount "104"]
[EventDate "2024.12.23"]
[EventType "swiss"]
[EventCountry "ENG"]
[SourceTitle "playchess.com"]
[Source "ChessBase"]
[SourceQuality "1"]
[TimeControl "5400+30"]

1. e4 {[%emt 0:00:02]} c6 {[%emt 0:00:08]} 2. d4 {[%emt 0:00:04]} d5 {[%emt 0:00:05]} 3. exd5 {[%emt 0:00:03]} cxd5 {[%emt 0:00:05]} 4. Bd3 {[%emt 0:00:02]} Nc6 {[%emt 0:00:06]} 5. c3 {[%emt 0:00:02]} Nf6 {[%emt 0:00:07]} 6. Bf4 {[%emt 0:00:04]} g6 {[%emt 0:00:05]} 7. Nf3 {[%emt 0:00:36]} Bg7 {[%emt 0:00:05]} 8. O-O {[%emt 0:00:38]} O-O {[%emt 0:00:11]} 9. Nbd2 {[%emt 0:01:04]} Nh5 {[%emt 0:00:53]} 10. Bg3 {[%emt 0:01:51]} Nxg3 {[%emt 0:01:01]} 11. hxg3 {[%emt 0:02:28]} Qc7 {[%emt 0:06:33]} 12. Qb3 {[%emt 0:03:58]} Rd8 {[%emt 0:00:06]} 13. Rfe1 {[%emt 0:07:40]} Bg4 {[%emt 0:04:55]} 14. Nh2 {[%emt 0:02:12]} Be6 {[%emt 0:00:27]} 15. f4 {[%emt 0:05:50]} Rab8 {[%emt 0:19:56]} 16. a4 {[%emt 0:06:02]} Qd6 {[%emt 0:12:29]} 17. Ndf3 {[%emt 0:04:19]} f6 {[%emt 0:02:06]} 18. Qd1 {[%emt 0:04:23]} Bf7 {[%emt 0:02:02]} 19. Qd2 {[%emt 0:05:32]} Re8 {[%emt 0:01:08]} 20. Bb5 {[%emt 0:12:15]} a6 {[%emt 0:08:51]} 21. Bxc6 {[%emt 0:01:02]} Qxc6 {[%emt 0:00:44]} 22. Re2 {[%emt 0:02:18]} Bf8 {[%emt 0:04:32]} 23. Ng4 {[%emt 0:02:22]} Qd7 {[%emt 0:01:24]} 24. Nf2 {[%emt 0:01:41]} Bh6 {[%emt 0:07:47]} 25. Nd3 {[%emt 0:01:46]} Qc7 {[%emt 0:03:12]} 26. Nc5 {[%emt 0:03:03]} e5 {[%emt 0:02:05]} 27. Rae1 {[%emt 0:04:26]} Ra8 {[%emt 0:01:41]} 28. a5 {[%emt 0:05:53]} e4 {[%emt 0:01:49]} 29. Nh2 {[%emt 0:03:16]} f5 {[%emt 0:02:47]} 30. Rf2 {[%emt 0:06:01]} Qxa5 {[%emt 0:03:28]} 31. Nxb7 {[%emt 0:00:26]} Qc7 {[%emt 0:00:05]} 32. Nc5 {[%emt 0:00:18]} Qe7 {[%emt 0:00:08]} 33. Qe3 {[%emt 0:02:25]} g5 {[%emt 0:02:28]} 34. Ra1 {[%emt 0:04:07]} a5 {[%emt 0:01:49]} 35. Nb3 {[%emt 0:00:12]} Qd8 {[%emt 0:00:37]} 36. Qe2 {[%emt 0:01:05]} Qb8 {[%emt 0:00:47]} 37. fxg5 {[%emt 0:00:50]} Bxg5 {[%emt 0:01:38]} 38. Rxf5 {[%emt 0:02:30]} h6 {[%emt 0:00:16]} 39. Nd2 {[%emt 0:01:48]} Qxb2 {[%emt 0:00:40]} 40. Rxg5+ {[%emt 0:03:49]} hxg5 {[%emt 0:00:09]} 41. Rf1 {[%emt 0:01:24]} Qxc3 {[%emt 0:04:51]} 42. Qf2 {[%emt 0:01:03]} Bg6 {[%emt 0:02:06]} 43. Qf6 {[%emt 0:00:35]} Kh7 {[%emt 0:00:01]} 44. Qxg5 {[%emt 0:00:30]} Qxd4+ {[%emt 0:00:09]} 45. Kh1 {[%emt 0:00:03]} Qe5 {[%emt 0:01:04]} 46. Qh4+ {[%emt 0:00:58]} Kg7 {[%emt 0:00:10]} 47. Rb1 {[%emt 0:00:31]} Rab8 {[%emt 0:00:39]} 48. Re1 {[%emt 0:00:15]} Rh8 {[%emt 0:00:48]} 49. Qg4 {[%emt 0:00:13]} Qf5 {[%emt 0:01:12]} 50. Qe2 {[%emt 0:00:36]} Qh5 {[%emt 0:00:05]} 51. Ndf3 {[%emt 0:00:39]} exf3 {[%emt 0:00:38]} 52. Qe7+ {[%emt 0:00:17]} Bf7 {[%emt 0:00:07]} 0-1

[Event "98th Caplin Hastings Masters 2024-25"]
[Site "Hastings"]
[Date "2024.12.31"]
[Round "5.34"]
[White "Kolani, Arjun"]
[Black "Vaidyanathan, Adithya"]
[Result "1-0"]
[ECO "B38"]
[WhiteElo "2131"]
[BlackElo "1904"]
[Annotator "NA RC"]
[PlyCount "105"]
[EventDate "2024.12.23"]
[EventType "swiss"]
[EventCountry "ENG"]
[SourceTitle "playchess.com"]
[Source "ChessBase"]
[SourceQuality "1"]
[TimeControl "5400+30"]

1. e4 {[%emt 0:00:07]} c5 {[%emt 0:00:04]} 2. Nf3 {[%emt 0:00:05]} Nc6 {[%emt 0:00:02]} 3. d4 {[%emt 0:00:07]} cxd4 {[%emt 0:00:05]} 4. Nxd4 {[%emt 0:00:05]} g6 {[%emt 0:00:03]} 5. c4 {[%emt 0:00:24]} Bg7 {[%emt 0:00:03]} 6. Be3 {[%emt 0:00:07]} Nf6 {[%emt 0:00:03]} 7. Nc3 {[%emt 0:00:06]} O-O {[%emt 0:00:05]} 8. Be2 {[%emt 0:00:17]} d6 {[%emt 0:00:06]} 9. f3 {[%emt 0:00:42]} Bd7 {[%emt 0:00:03]} 10. Qd2 {[%emt 0:00:27]} Nxd4 {[%emt 0:00:06]} 11. Bxd4 {[%emt 0:00:06]} a5 {[%emt 0:00:04]} 12. h4 {[%emt 0:00:49]} a4 {[%emt 0:00:10]} 13. h5 {[%emt 0:01:40]} Qa5 {[%emt 0:00:09]} 14. g4 {[%emt 0:01:07]} Be6 {[%emt 0:10:42]} 15. Kf2 {[%emt 0:06:11]} a3 {[%emt 0:08:30]} 16. b3 {[%emt 0:24:34]} Bxg4 {[%emt 0:30:36]} 17. b4 {[%emt 0:03:46]} Qxb4 {[%emt 0:00:08]} 18. Rab1 {[%emt 0:00:22]} Qa5 {[%emt 0:00:07]} 19. Rb5 {[%emt 0:01:09]} Qa6 {[%emt 0:06:08]} 20. fxg4 {[%emt 0:00:47]} Qc6 {[%emt 0:00:15]} 21. Bxf6 {[%emt 0:07:16]} exf6 {[%emt 0:03:15]} 22. Nd5 {[%emt 0:03:47]} Rfe8 {[%emt 0:00:21]} 23. Qf4 {[%emt 0:01:48]} Re6 {[%emt 0:01:06]} 24. Bd3 {[%emt 0:01:29]} Rae8 {[%emt 0:07:50]} 25. h6 {[%emt 0:02:39]} Bh8 {[%emt 0:00:11]} 26. Rhb1 {[%emt 0:00:00]} b6 {[%emt 0:03:24]} 27. Rxb6 {[%emt 0:01:47]} Qc5+ {[%emt 0:00:09]} 28. Qe3 {[%emt 0:00:17]} Qxe3+ {[%emt 0:01:43]} 29. Kxe3 {[%emt 0:00:30]} f5 {[%emt 0:00:36]} 30. Nc7 {[%emt 0:01:04]} Rxe4+ {[%emt 0:01:50]} 31. Bxe4 {[%emt 0:00:13]} Rxe4+ {[%emt 0:00:04]} 32. Kf3 {[%emt 0:00:28]} Kf8 {[%emt 0:00:08]} 33. Rb8+ {[%emt 0:00:41]} Ke7 {[%emt 0:00:03]} 34. Nd5+ {[%emt 0:00:20]} Ke6 {[%emt 0:00:11]} 35. Re8+ {[%emt 0:00:14]} Kd7 {[%emt 0:00:05]} 36. Rxe4 {[%emt 0:00:12]} fxe4+ {[%emt 0:00:06]} 37. Kxe4 {[%emt 0:00:05]} Bb2 {[%emt 0:00:14]} 38. Rf1 {[%emt 0:00:18]} Ke6 {[%emt 0:00:07]} 39. Nc7+ {[%emt 0:00:06]} Ke7 {[%emt 0:00:04]} 40. Kd5 {[%emt 0:00:10]} Bc3 {[%emt 0:00:10]} 41. Nb5 {[%emt 0:00:10]} Bb4 {[%emt 0:00:17]} 42. Rb1 {[%emt 0:00:24]} Bc5 {[%emt 0:00:06]} 43. Rb3 {[%emt 0:00:09]} f5 {[%emt 0:00:15]} 44. gxf5 {[%emt 0:00:13]} gxf5 {[%emt 0:00:05]} 45. Rf3 {[%emt 0:00:05]} Kd7 {[%emt 0:00:16]} 46. Rxf5 {[%emt 0:00:05]} Be3 {[%emt 0:00:06]} 47. Rf7+ {[%emt 0:00:08]} Kd8 {[%emt 0:00:05]} 48. Kxd6 {[%emt 0:00:09]} Kc8 {[%emt 0:00:07]} 49. c5 {[%emt 0:00:43]} Kb8 {[%emt 0:00:36]} 50. Kc6 {[%emt 0:00:17]} Bxh6 {[%emt 0:00:09]} 51. Rb7+ {[%emt 0:00:07]} Kc8 {[%emt 0:00:07]} 52. Nd6+ {[%emt 0:00:04]} Kd8 {[%emt 0:00:04]} 53. Rd7# {[%emt 0:00:36]} 1-0

[Event "98th Caplin Hastings Masters 2024-25"]
[Site "Hastings"]
[Date "2024.12.31"]
[Round "5.35"]
[White "Cheng, Louis"]
[Black "Keely, Leo A"]
[Result "1-0"]
[ECO "C42"]
[WhiteElo "2087"]
[BlackElo "1899"]
[Annotator "NA RC"]
[PlyCount "111"]
[EventDate "2024.12.23"]
[EventType "swiss"]
[EventCountry "ENG"]
[SourceTitle "playchess.com"]
[Source "ChessBase"]
[SourceQuality "1"]
[TimeControl "5400+30"]

1. e4 {[%emt 0:00:01]} e5 {[%emt 0:00:19]} 2. Nf3 {[%emt 0:00:06]} Nf6 {[%emt 0:00:14]} 3. Nxe5 {[%emt 0:00:05]} d6 {[%emt 0:00:21]} 4. Nf3 {[%emt 0:00:06]} Nxe4 {[%emt 0:00:15]} 5. Qe2 {[%emt 0:00:06]} Qe7 {[%emt 0:01:40]} 6. d3 {[%emt 0:00:12]} Nf6 {[%emt 0:01:17]} 7. Bg5 {[%emt 0:00:09]} Nbd7 {[%emt 0:05:10]} 8. Nc3 {[%emt 0:01:34]} Qxe2+ {[%emt 0:02:19]} 9. Bxe2 {[%emt 0:00:05]} h6 {[%emt 0:01:58]} 10. Be3 {[%emt 0:01:38]} Be7 {[%emt 0:08:56]} 11. O-O-O {[%emt 0:01:40]} c6 {[%emt 0:02:47]} 12. h3 {[%emt 0:01:58]} Nb6 {[%emt 0:03:35]} 13. Rhe1 {[%emt 0:04:24]} O-O {[%emt 0:11:10]} 14. d4 {[%emt 0:01:12]} Nfd5 {[%emt 0:01:02]} 15. Nxd5 {[%emt 0:00:14]} Nxd5 {[%emt 0:00:09]} 16. Bd2 {[%emt 0:00:24]} Bf6 {[%emt 0:01:43]} 17. c4 {[%emt 0:00:30]} Nb6 {[%emt 0:02:44]} 18. b3 {[%emt 0:02:19]} Bf5 {[%emt 0:02:08]} 19. Bf4 {[%emt 0:00:52]} d5 {[%emt 0:02:08]} 20. c5 {[%emt 0:00:09]} Nd7 {[%emt 0:00:09]} 21. Bd3 {[%emt 0:00:36]} Bxd3 {[%emt 0:01:39]} 22. Rxd3 {[%emt 0:00:05]} Rfe8 {[%emt 0:00:24]} 23. Rde3 {[%emt 0:01:28]} Rxe3 {[%emt 0:00:20]} 24. Rxe3 {[%emt 0:00:05]} g5 {[%emt 0:01:46]} 25. Bd6 {[%emt 0:00:15]} Kg7 {[%emt 0:07:58]} 26. b4 {[%emt 0:00:27]} h5 {[%emt 0:01:19]} 27. g4 {[%emt 0:01:18]} hxg4 {[%emt 0:00:12]} 28. hxg4 {[%emt 0:00:04]} Rh8 {[%emt 0:00:08]} 29. Rb3 {[%emt 0:00:54]} Rh1+ {[%emt 0:00:58]} 30. Kc2 {[%emt 0:00:26]} Ra1 {[%emt 0:01:43]} 31. Rb2 {[%emt 0:00:57]} a6 {[%emt 0:00:39]} 32. Kd3 {[%emt 0:05:24]} b5 {[%emt 0:01:29]} 33. Nd2 {[%emt 0:02:13]} Nf8 {[%emt 0:01:41]} 34. Nb3 {[%emt 0:06:23]} Rg1 {[%emt 0:00:10]} 35. Bxf8+ {[%emt 0:02:00]} Kxf8 {[%emt 0:00:08]} 36. Na5 {[%emt 0:00:13]} Rxg4 {[%emt 0:00:36]} 37. Nxc6 {[%emt 0:00:07]} Ke8 {[%emt 0:02:47]} 38. Re2+ {[%emt 0:01:34]} Kd7 {[%emt 0:00:44]} 39. Ne5+ {[%emt 0:00:06]} Bxe5 {[%emt 0:00:13]} 40. Rxe5 {[%emt 0:00:04]} Kc6 {[%emt 0:02:29]} 41. Rf5 {[%emt 0:00:07]} Rg1 {[%emt 0:01:36]} 42. Rf6+ {[%emt 0:00:06]} Kd7 {[%emt 0:00:09]} 43. Rxf7+ {[%emt 0:00:07]} Ke6 {[%emt 0:00:07]} 44. Ra7 {[%emt 0:00:12]} Rf1 {[%emt 0:00:58]} 45. Rxa6+ {[%emt 0:00:06]} Kf5 {[%emt 0:00:06]} 46. Ke3 {[%emt 0:00:22]} Re1+ {[%emt 0:00:12]} 47. Kd2 {[%emt 0:00:07]} Rb1 {[%emt 0:01:01]} 48. Rd6 {[%emt 0:00:33]} Rb2+ {[%emt 0:02:14]} 49. Kc3 {[%emt 0:00:17]} Rxf2 {[%emt 0:00:09]} 50. Rxd5+ {[%emt 0:00:07]} Kf4 {[%emt 0:00:42]} 51. c6 {[%emt 0:00:45]} Rf3+ {[%emt 0:01:37]} 52. Kd2 {[%emt 0:00:07]} Rf2+ {[%emt 0:01:54]} 53. Ke1 {[%emt 0:00:08]} Rc2 {[%emt 0:00:06]} 54. Rc5 {[%emt 0:00:05]} Rxa2 {[%emt 0:00:29]} 55. c7 {[%emt 0:00:04]} Ke3 {[%emt 0:00:58]} 56. Rc3+ {[%emt 0:00:07]} 1-0

[Event "98th Caplin Hastings Masters 2024-25"]
[Site "Hastings"]
[Date "2024.12.31"]
[Round "5.36"]
[White "Rastogi, Nayan Keats"]
[Black "Marusenko, Petr"]
[Result "0-1"]
[ECO "B12"]
[WhiteElo "1892"]
[BlackElo "2021"]
[Annotator "NA RC"]
[PlyCount "136"]
[EventDate "2024.12.23"]
[EventType "swiss"]
[EventCountry "ENG"]
[SourceTitle "playchess.com"]
[Source "ChessBase"]
[SourceQuality "1"]
[TimeControl "5400+30"]

1. e4 {[%emt 0:00:02]} c6 {[%emt 0:04:52]} 2. d4 {[%emt 0:00:05]} d5 {[%emt 0:00:07]} 3. e5 {[%emt 0:00:03]} Bf5 {[%emt 0:00:05]} 4. Nf3 {[%emt 0:00:05]} e6 {[%emt 0:00:05]} 5. c3 {[%emt 0:00:02]} Ne7 {[%emt 0:00:07]} 6. Be2 {[%emt 0:00:08]} c5 {[%emt 0:00:11]} 7. O-O {[%emt 0:01:13]} Nec6 {[%emt 0:00:04]} 8. Be3 {[%emt 0:01:11]} Qb6 {[%emt 0:01:22]} 9. Qc1 {[%emt 0:00:44]} Nd7 {[%emt 0:00:09]} 10. Nbd2 {[%emt 0:01:06]} Rc8 {[%emt 0:00:52]} 11. a4 {[%emt 0:00:42]} cxd4 {[%emt 0:01:19]} 12. Nxd4 {[%emt 0:00:50]} Nxd4 {[%emt 0:00:08]} 13. Bxd4 {[%emt 0:00:08]} Bc5 {[%emt 0:00:06]} 14. Nf3 {[%emt 0:04:45]} O-O {[%emt 0:00:25]} 15. Bb5 {[%emt 0:06:08]} Nb8 {[%emt 0:08:06]} 16. Bxc5 {[%emt 0:05:30]} Rxc5 {[%emt 0:01:24]} 17. Nd4 {[%emt 0:01:08]} Bg6 {[%emt 0:00:08]} 18. b4 {[%emt 0:03:46]} Rcc8 {[%emt 0:00:12]} 19. Qe3 {[%emt 0:04:08]} a6 {[%emt 0:06:42]} 20. Be2 {[%emt 0:02:45]} Nc6 {[%emt 0:00:11]} 21. Rfd1 {[%emt 0:14:41]} Nxd4 {[%emt 0:08:50]} 22. Rxd4 {[%emt 0:00:24]} Rc6 {[%emt 0:03:02]} 23. a5 {[%emt 0:02:32]} Qc7 {[%emt 0:00:11]} 24. c4 {[%emt 0:00:57]} dxc4 {[%emt 0:00:18]} 25. Bf3 {[%emt 0:00:13]} c3 {[%emt 0:01:16]} 26. Bxc6 {[%emt 0:00:15]} Qxc6 {[%emt 0:00:05]} 27. Rd6 {[%emt 0:05:13]} Qc7 {[%emt 0:06:34]} 28. Ra3 {[%emt 0:05:23]} c2 {[%emt 0:02:32]} 29. Rc3 {[%emt 0:01:06]} Qe7 {[%emt 0:00:34]} 30. Qd4 {[%emt 0:04:03]} h6 {[%emt 0:01:13]} 31. Rd7 {[%emt 0:18:31]} Qg5 {[%emt 0:00:20]} 32. Qe3 {[%emt 0:01:23]} Qg4 {[%emt 0:00:52]} 33. Qd4 {[%emt 0:04:39]} Qe2 {[%emt 0:02:33]} 34. Qd2 {[%emt 0:00:22]} Qb5 {[%emt 0:05:07]} 35. Rd8 {[%emt 0:05:17]} Rxd8 {[%emt 0:00:51]} 36. Qxd8+ {[%emt 0:00:12]} Kh7 {[%emt 0:00:01]} 37. Qd2 {[%emt 0:02:58]} Qxe5 {[%emt 0:01:29]} 38. h3 {[%emt 0:00:53]} Qh5 {[%emt 0:06:13]} 39. f3 {[%emt 0:02:19]} Qb5 {[%emt 0:00:41]} 40. Rc5 {[%emt 0:00:51]} Qa4 {[%emt 0:00:06]} 41. Qc3 {[%emt 0:00:49]} Qd7 {[%emt 0:01:36]} 42. Kh2 {[%emt 0:00:50]} Qd6+ {[%emt 0:03:22]} 43. Kg1 {[%emt 0:00:10]} e5 {[%emt 0:00:02]} 44. Kh1 {[%emt 0:03:03]} e4 {[%emt 0:03:38]} 45. fxe4 {[%emt 0:00:26]} Bxe4 {[%emt 0:00:08]} 46. Qe3 {[%emt 0:00:24]} Qe6 {[%emt 0:02:48]} 47. Qd2 {[%emt 0:00:29]} Qxh3+ {[%emt 0:00:21]} 48. Kg1 {[%emt 0:00:13]} Qg3 {[%emt 0:03:14]} 49. Rxc2 {[%emt 0:00:18]} Bxc2 {[%emt 0:00:12]} 50. Qxc2+ {[%emt 0:00:03]} g6 {[%emt 0:00:27]} 51. Qe4 {[%emt 0:00:48]} Qc7 {[%emt 0:00:22]} 52. Qd5 {[%emt 0:00:15]} Qe7 {[%emt 0:00:12]} 53. Qc4 {[%emt 0:00:19]} h5 {[%emt 0:00:51]} 54. b5 {[%emt 0:00:17]} axb5 {[%emt 0:05:13]} 55. Qxb5 {[%emt 0:00:06]} h4 {[%emt 0:00:04]} 56. a6 {[%emt 0:00:43]} Qe3+ {[%emt 0:00:39]} 57. Kh2 {[%emt 0:00:11]} bxa6 {[%emt 0:01:01]} 58. Qxa6 {[%emt 0:00:13]} Qg3+ {[%emt 0:00:08]} 59. Kh1 {[%emt 0:00:11]} h3 {[%emt 0:00:12]} 60. gxh3 {[%emt 0:00:10]} Qxh3+ {[%emt 0:00:06]} 61. Kg1 {[%emt 0:00:04]} Qg4+ {[%emt 0:00:51]} 62. Kh1 {[%emt 0:00:10]} f5 {[%emt 0:00:28]} 63. Qa7+ {[%emt 0:01:01]} Kh6 {[%emt 0:00:22]} 64. Qe3+ {[%emt 0:00:04]} f4 {[%emt 0:00:08]} 65. Qe7 {[%emt 0:00:09]} Qh3+ {[%emt 0:01:31]} 66. Kg1 {[%emt 0:00:04]} Qe3+ {[%emt 0:00:05]} 67. Qxe3 {[%emt 0:00:10]} fxe3 {[%emt 0:00:09]} 68. Kf1 {[%emt 0:00:22]} Kg5 {[%emt 0:00:06]} 0-1